[Event "Sardinia World Festival-A 2024"]
[Site "Orosei"]
[Date "2024.04.30"]
[Round "4.39"]
[White "Maldonado Gonzales, Stefano"]
[Black "Vantika Agrawal"]
[Result "0-1"]
[ECO "B62"]
[WhiteElo "2218"]
[BlackElo "2398"]
[Annotator "TA"]
[PlyCount "116"]
[EventDate "2024.04.26"]
[EventType "swiss"]
[EventCountry "ITA"]
[SourceTitle "playchess.com"]
[Source "ChessBase"]
[SourceQuality "1"]
[TimeControl "40/5400+30:1800+30"]

{[%evp 16,116,29,31,50,29,27,0,27,0,54,21,20,0,33,-23,-28,-19,0,-38,-35,-37,-31,-39,-37,-39,-31,-44,-50,-76,-75,-75,-33,-47,-50,-47,-47,-57,-57,-57,-57,-65,-50,-50,-50,-50,-50,-50,-50,-115,-107,-107,-107,-114,-119,-189,-189,-189,-190,-230,-191,-142,-142,-208,-208,-225,-199,-404,-356,-407,-352,-808,-392,-430,-408,-390,-138,-614,-540,-662,-662,-618,-623,-737,-666,-671,-599,-688,-597,-853,-853,-765,-791,-664,-624,-4678,-2690,-2485,-2491,-6123,-5206,-6087,-2940]} 1. e4 {[%emt 0:00:02]} c5 {[%emt 0:06:17]} 2. Nf3 {[%emt 0:00:04]} d6 {[%emt 0:00:12]} 3. d4 {[%emt 0:00:03]} cxd4 {[%emt 0:00:05]} 4. Nxd4 {[%emt 0:00:03]} Nf6 {[%emt 0:00:06]} 5. Nc3 {[%emt 0:00:03]} Nc6 {[%emt 0:00:08]} 6. Bg5 {[%emt 0:00:04]} e6 {[%emt 0:00:22]} 7. Qd3 {[%emt 0:00:05]} Bd7 {[%emt 0:02:35]} 8. O-O-O {[%emt 0:00:06]} a6 {[%emt 0:04:10]} 9. f4 {[%emt 0:00:04]} Be7 {[%emt 0:02:16]} 10. Nf3 {[%emt 0:00:04]} Qa5 {[%emt 0:03:51]} 11. Kb1 {[%emt 0:03:15]} Rc8 {[%emt 0:06:50] The position is equal.} 12. Qd2 {[%emt 0:09:00][%cal Oe4e5]} (12. Bxf6 {looks sharper.} Nb4 13. Qd2 Bxf6 14. e5) 12... b5 {[%emt 0:15:31]} ({Better is} 12... O-O $11) 13. Bxf6 {[%emt 0:11:41]} (13. e5 {keeps more tension.} b4 14. exf6 bxc3 15. fxg7 Rg8 16. Qxc3 Qxc3 17. bxc3 Rxg7 18. Bxe7 Kxe7 19. Nh4) 13... gxf6 {[%emt 0:01:08]} 14. Bd3 {[%emt 0:09:36]} h5 {[%emt 0:07:37]} (14... Nb4 $5) 15. Ne2 {[%emt 0:06:02]} (15. Qe3 $14) 15... Qxd2 $11 {[%emt 0:14:00]} 16. Rxd2 {[%emt 0:00:09]} Na5 {[%emt 0:04:46][%cal Bc6a5,Ba5b7,Bb7c5][%mdl 32]} 17. b3 {[%emt 0:08:30]} Nb7 {[%emt 0:12:50]} 18. c4 {[%emt 0:11:38]} b4 {[%emt 0:08:09]} 19. Bc2 {[%emt 0:03:44]} Nc5 {[%emt 0:00:42]} 20. Re1 {[%emt 0:03:45]} Kd8 {[%emt 0:04:56]} 21. f5 {[%emt 0:09:49]} e5 {[%emt 0:01:08]} 22. Nc1 {[%emt 0:05:07]} Bc6 {[%emt 0:00:47]} 23. Rde2 {[%emt 0:06:35]} Kc7 {[%emt 0:01:24]} 24. Nd3 {[%emt 0:00:04]} a5 {[%emt 0:01:54]} 25. Nxc5 {[%emt 0:01:08]} dxc5 {[%emt 0:00:04]} 26. Nd2 {[%emt 0:00:08]} Bf8 {[%emt 0:00:31]} 27. Nf1 {[%emt 0:00:43]} Bh6 {[%emt 0:00:06]} 28. Rd1 {[%emt 0:04:18]} h4 {[%emt 0:00:59][%cal Oh4h3]} 29. Ne3 {[%emt 0:01:18]} Bxe3 {[%emt 0:00:08]} 30. Rxe3 {[%emt 0:00:01]} Rcg8 {[%emt 0:00:40]} 31. Rd2 {[%emt 0:01:11]} Rg4 {[%emt 0:00:34]} 32. Rf2 {[%emt 0:01:51]} (32. Ree2 $15) 32... Rhg8 {[%emt 0:00:14] White is weak on the dark squares} 33. Ree2 {[%emt 0:00:07]} Rd8 {[%emt 0:00:45]} 34. h3 {[%emt 0:02:13]} Rg3 {[%emt 0:00:59] Black is more active.} 35. Rf3 {[%emt 0:02:59] [#]} (35. Kc1 $17) 35... Rxf3 $1 $19 {[%emt 0:00:42]} 36. gxf3 {[%emt 0:00:01][%mdl 4096] Endgame. [#] KRB-KRB} Rg8 {[%emt 0:00:19] Prevents Rg2. ...Rg3 is the strong threat.} 37. Bd1 {[%emt 0:01:55]} Rg1 {[%emt 0:00:26]} 38. Kc2 {[%emt 0:00:01]} (38. Kc1 $19) 38... Rh1 $17 {[%emt 0:00:28]} 39. Rg2 {[%emt 0:00:23]} (39. Kd2 $17 {might work better.}) 39... Rxh3 $19 {[%emt 0:00:19]} 40. Rg7 {[%emt 0:01:26]} Rh2+ {[%emt 0:00:47]} 41. Kb1 $2 {[%emt 0:30:55]} (41. Kd3) 41... Be8 {[%emt 0:11:39]} 42. Rh7 {[%emt 0:00:00]} a4 {[%emt 0:01:34] aiming for ...a3.} 43. Rh8 $2 {[%emt 0:00:00]} (43. Kc1) 43... Bd7 {[%emt 0:01:13]} (43... a3 $142 44. Rxe8 Rb2+ 45. Kc1 Rxa2) 44. Kc1 {[%emt 0:00:00]} Rxa2 {[%emt 0:16:01]} 45. bxa4 {[%emt 0:00:00]} Kd6 $2 {[%emt 0:01:34]} (45... Bxa4 $19 {has better winning chances.} 46. Bxa4 Rxa4 47. Rxh4 Kd6) 46. Bb3 $2 {[%emt 0:00:00][%mdl 8192] This move loses the game for White.} (46. Rxh4 $17 Bxa4 47. Kb1) 46... Ra3 {[%emt 0:00:31] Black is clearly winning.} 47. Kb2 {[%emt 0:00:00]} Bxa4 {[%emt 0:00:06]} 48. Bxa4 {[%emt 0:00:00]} Rxa4 {[%emt 0:00:02]} 49. Rxh4 {[%emt 0:00:00] KR-KR} Ra3 {[%emt 0:00:06]} 50. Rh8 {[%emt 0:00:05]} Rc3 {[%emt 0:00:05]} ({Not} 50... Rxf3 51. Rd8+ Ke7 52. Rd5 $17) 51. Rb8 {[%emt 0:01:04]} Ke7 {[%emt 0:00:46]} ({Weaker is} 51... Rxf3 52. Rb6+ Ke7 53. Rb7+ Kd8 (53... Kf8 54. Rb8+ Kg7 55. Rc8 $17) 54. Rxf7 $17) 52. Rb7+ {[%emt 0:03:19]} Kf8 {[%emt 0:00:06]} 53. Rb8+ {[%emt 0:00:38]} Kg7 {[%emt 0:00:06]} 54. Rc8 {[%emt 0:00:25]} Rxc4 {[%emt 0:00:05] Threatens to win with ...Kh6.} 55. Kb3 {[%emt 0:00:04]} Rc3+ {[%emt 0:00:09]} 56. Ka4 {[%emt 0:00:03]} b3 {[%emt 0:00:14][%cal Oc5c4] Strongly threatening ...c4!} 57. Ka3 {[%emt 0:00:15]} c4 {[%emt 0:00:05]} 58. Kb4 {[%emt 0:00:11]} Rc2 {[%emt 0:00:12] Weighted Error Value: White=0.79/Black=0.21 (precise) .  Loses game:     	White=1     	---        Missed win:     	---       	Black=1      Mistake:       	White=7     	Black=2      Inaccurate:     	White=6     	Black=3      OK:         	White=9     	Black=13     Best:        	---       	Black=5} 0-1

[Event "Sardinia World Festival-A 2024"]
[Site "Orosei"]
[Date "2024.04.30"]
[Round "4.40"]
[White "Chitre Arush"]
[Black "Shohat, Yotam"]
[Result "1/2-1/2"]
[ECO "D02"]
[WhiteElo "2210"]
[BlackElo "2398"]
[Annotator "TA"]
[PlyCount "110"]
[EventDate "2024.04.26"]
[EventType "swiss"]
[EventCountry "ITA"]
[SourceTitle "playchess.com"]
[Source "ChessBase"]
[SourceQuality "1"]
[TimeControl "40/5400+30:1800+30"]

{[%evp 10,110,0,-10,-3,-9,14,15,22,16,24,25,12,14,16,19,22,-10,-15,-38,-14,-70,-61,-74,-64,-70,-88,-72,-72,-75,-78,-67,-68,-78,-73,-62,-64,-93,-92,-110,-112,-104,-104,-106,-101,-97,-52,-123,-122,-131,-116,-127,-119,-210,-141,-119,-83,-83,-60,-83,-83,-83,-61,-83,-83,-83,-83,-83,-83,-83,-83,-90,-83,-83,-80,-80,-80,-80,-55,-55,-55,-55,-12,-12,-12,-12,0,-12,-12,-12,0,-19,-19,-19,-19,-19,0,-19,-19,-19,-12,-22,0]} 1. d4 {[%emt 0:03:01]} Nf6 {[%emt 0:01:50]} 2. Bf4 {[%emt 0:00:24]} c5 {[%emt 0:00:05]} 3. e3 {[%emt 0:00:05]} d5 {[%emt 0:00:06]} 4. Nf3 {[%emt 0:00:08]} Nc6 {[%emt 0:00:06]} 5. c3 {[%emt 0:00:04]} Qb6 {[%emt 0:00:15]} 6. Qc2 {[%emt 0:00:15]} g6 {[%emt 0:00:06]} 7. Nbd2 {[%emt 0:00:11]} Bf5 {[%emt 0:00:07]} 8. dxc5 {[%emt 0:00:11]} Qxc5 {[%emt 0:00:08]} 9. Qb3 {[%emt 0:00:06]} Na5 {[%emt 0:00:07]} 10. Qb5+ {[%emt 0:03:55]} Qxb5 {[%emt 0:00:28]} 11. Bxb5+ {[%emt 0:00:04]} Bd7 {[%emt 0:00:10]} 12. Bxd7+ {[%emt 0:00:39]} Nxd7 {[%emt 0:00:03]} 13. e4 {[%emt 0:05:42]} Nc5 {[%emt 0:04:42]} 14. Bc7 {[%emt 0:42:25]} dxe4 {[%emt 0:08:00]} 15. Ng5 {[%emt 0:01:09]} ({White should try} 15. Nxe4 $11 Nxe4 16. Bxa5) 15... Bh6 {[%emt 0:18:44]} 16. Ngxe4 {[%emt 0:05:45]} Nxe4 {[%emt 0:00:31]} 17. Nxe4 {[%emt 0:00:06]} Nc4 {[%emt 0:01:33][%cal Oa8c8] aiming for ...Rc8!} 18. b3 {[%emt 0:04:12]} Rc8 {[%emt 0:00:41]} 19. Bg3 {[%emt 0:01:40]} f5 {[%emt 0:05:38]} 20. bxc4 {[%emt 0:00:13]} fxe4 {[%emt 0:00:04]} 21. Rb1 {[%emt 0:02:27]} b6 {[%emt 0:03:26]} ({Much weaker is} 21... Rxc4 22. Rxb7 Kf7 23. Rxa7 $11) 22. Rb4 {[%emt 0:01:25]} Bg7 {[%emt 0:03:28]} 23. Kd2 {[%emt 0:00:38]} Kf7 $36 {[%emt 0:03:30][%mdl 2048] White must now prevent ...Rhd8+. Black has strong initiative.} 24. Kc2 {[%emt 0:10:54]} Rhd8 {[%emt 0:00:38]} 25. Re1 {[%emt 0:02:27]} Rd3 {[%emt 0:00:14]} 26. Re3 {[%emt 0:00:39]} Rxe3 {[%emt 0:18:22]} ({Of course not} 26... Bxc3 $6 27. Rxd3 Bxb4 28. Rd4 $11) 27. fxe3 $17 {[%emt 0:00:04][%mdl 4096] Endgame. KRB-KRB} Rc5 {[%emt 0:02:04]} 28. Be1 {[%emt 0:03:44]} (28. Bb8 $15 Ra5 29. a4) 28... Be5 {[%emt 0:04:42]} 29. h3 {[%emt 0:02:37]} Bd6 {[%emt 0:00:25]} 30. g4 {[%emt 0:04:08]} h5 {[%emt 0:07:05]} 31. Kb3 {[%emt 0:01:27]} (31. Rb5 $17 {was the only chance.}) 31... hxg4 {[%emt 0:00:42]} 32. hxg4 {[%emt 0:00:05]} Ke6 {[%emt 0:03:56]} 33. Rb5 {[%emt 0:00:59]} Kd7 {[%emt 0:02:57]} 34. Rxc5 {[%emt 0:01:59]} Bxc5 $15 {[%emt 0:00:02] KB-KB} 35. Bf2 {[%emt 0:00:01]} Kc6 {[%emt 0:01:28]} 36. a4 {[%emt 0:01:21]} e6 {[%emt 0:00:55]} 37. Kc2 {[%emt 0:00:40]} Be7 {[%emt 0:02:51]} 38. Kb2 {[%emt 0:01:17]} Kc5 {[%emt 0:00:44]} 39. Kb3 {[%emt 0:00:02]} Bg5 {[%emt 0:00:44]} 40. Bg1 {[%emt 0:00:25]} Bh6 {[%emt 0:04:11]} 41. Bf2 {[%emt 0:30:49]} a6 {[%emt 0:20:12]} 42. Bg1 {[%emt 0:00:00]} Bg5 {[%emt 0:00:11]} 43. Bf2 {[%emt 0:00:00]} e5 {[%emt 0:01:52]} 44. Bg3 $1 {[%emt 0:00:00]} Kd6 {[%emt 0:04:53]} ({Don't play} 44... Bxe3 45. Bxe5 Bg1 46. Bg7 $11) 45. Bf2 {[%emt 0:00:00]} a5 {[%emt 0:00:34]} 46. Kc2 {[%emt 0:00:00] The position is equal.} Be7 {[%emt 0:03:59]} 47. Bg3 {[%emt 0:00:00]} Bg5 {[%emt 0:01:40]} (47... Kc5 $5 48. Kb3 $8 Bf6 $11) 48. Bf2 {[%emt 0:00:00]} Bh6 {[%emt 0:00:11]} 49. Kb3 {[%emt 0:00:00]} Kc6 {[%emt 0:00:49]} 50. Kc2 {[%emt 0:00:00]} Bg5 {[%emt 0:01:07]} (50... Kc5 $5 51. Kb3 $8 Kc6 $11) 51. Kb3 {[%emt 0:00:00]} Be7 {[%emt 0:02:14]} 52. Bg3 {[%emt 0:00:00]} Kd6 {[%emt 0:00:52]} 53. Kc2 {[%emt 0:00:00]} Ke6 {[%emt 0:00:12]} (53... Kc5 $5 54. Kb3 $8 Bf6 $11) 54. Kd2 {[%emt 0:00:00]} Bg5 {[%emt 0:00:55] [#] And now ...Kd6 would win.} 55. Bf2 {[%emt 0:00:00]} Be7 {[%emt 0:00:54] Whites escaped into a draw.   Weighted Error Value: White=0.09 (flawless) /Black=0.09 (flawless) .  Mistake:       	White=3     	---        Inaccurate:     	White=2     	Black=4      OK:         	White=23    	Black=16     Best:        	White=7     	Black=4      Strong:       	White=1     	---} 1/2-1/2

[Event "Sardinia World Festival-A 2024"]
[Site "Orosei"]
[Date "2024.04.30"]
[Round "4.41"]
[White "Zemach, Nadav"]
[Black "Bin-Suhayl, Ieysaa"]
[Result "1-0"]
[ECO "E06"]
[WhiteElo "2396"]
[BlackElo "2214"]
[Annotator "RC"]
[PlyCount "201"]
[EventDate "2024.04.26"]
[EventType "swiss"]
[EventCountry "ITA"]
[SourceTitle "playchess.com"]
[Source "ChessBase"]
[SourceQuality "1"]
[TimeControl "40/5400+30:1800+30"]

1. d4 {[%emt 0:00:02]} d5 {[%emt 0:04:29]} 2. c4 {[%emt 0:00:06]} e6 {[%emt 0:00:04]} 3. Nf3 {[%emt 0:00:18]} Nf6 {[%emt 0:00:04]} 4. g3 {[%emt 0:00:21]} Be7 {[%emt 0:00:05]} 5. Bg2 {[%emt 0:00:13]} O-O {[%emt 0:00:12]} 6. Nc3 {[%emt 0:01:28]} dxc4 {[%emt 0:03:57]} 7. Ne5 {[%emt 0:00:21]} Nc6 {[%emt 0:06:50]} 8. Bxc6 {[%emt 0:00:07]} bxc6 {[%emt 0:00:03]} 9. Nxc6 {[%emt 0:00:10]} Qe8 {[%emt 0:00:16]} 10. Nxe7+ {[%emt 0:00:06]} Qxe7 {[%emt 0:00:03]} 11. Qa4 {[%emt 0:00:12]} Bb7 {[%emt 0:06:51]} 12. O-O {[%emt 0:06:27]} Bd5 {[%emt 0:06:18]} 13. b3 {[%emt 0:15:23]} Qe8 {[%emt 0:04:40]} 14. Qa6 {[%emt 0:04:01]} Qc8 {[%emt 0:01:51]} 15. Qxc8 {[%emt 0:04:48]} Rfxc8 {[%emt 0:00:03]} 16. Nxd5 {[%emt 0:00:10]} exd5 {[%emt 0:05:14]} 17. bxc4 {[%emt 0:00:19]} dxc4 {[%emt 0:04:18]} 18. Ba3 {[%emt 0:05:45]} Re8 {[%emt 0:00:04]} 19. e3 {[%emt 0:03:13]} Nd5 {[%emt 0:06:42]} 20. Rfc1 {[%emt 0:07:19]} c3 {[%emt 0:02:21]} 21. Rab1 {[%emt 0:00:13]} a6 {[%emt 0:23:21]} 22. Bb4 {[%emt 0:08:22]} Reb8 {[%emt 0:00:39]} 23. Ba3 {[%emt 0:06:53]} f5 {[%emt 0:00:32]} 24. Kf1 {[%emt 0:04:43]} Rb5 {[%emt 0:00:57]} 25. Ke2 {[%emt 0:06:04]} Kf7 {[%emt 0:08:24]} 26. Kd3 {[%emt 0:00:51]} Ke6 {[%emt 0:00:11]} 27. f3 {[%emt 0:01:30]} Kd7 {[%emt 0:04:44]} 28. e4 {[%emt 0:01:25]} Nf6 {[%emt 0:00:31]} 29. Rxb5 {[%emt 0:13:07]} axb5 {[%emt 0:00:03]} 30. Rxc3 {[%emt 0:00:06]} Re8 {[%emt 0:03:27]} 31. exf5 {[%emt 0:03:32]} Nd5 {[%emt 0:00:05]} 32. Rb3 {[%emt 0:00:08]} c6 {[%emt 0:00:47]} 33. Kd2 {[%emt 0:00:58]} Ra8 {[%emt 0:00:12]} 34. h4 {[%emt 0:02:20]} Ra4 {[%emt 0:00:56]} 35. Kd3 {[%emt 0:00:32]} Ke8 {[%emt 0:01:43]} 36. g4 {[%emt 0:01:27]} Kf7 {[%emt 0:00:07]} 37. g5 {[%emt 0:00:40]} b4 {[%emt 0:01:02]} 38. Bb2 {[%emt 0:02:06]} Rxa2 {[%emt 0:00:11]} 39. Kc4 {[%emt 0:00:44]} Ra5 {[%emt 0:00:25]} 40. h5 {[%emt 0:01:47]} Nb6+ {[%emt 0:03:29]} 41. Kd3 {[%emt 0:04:03]} Rxf5 {[%emt 0:01:46]} 42. Rxb4 {[%emt 0:00:19]} Nd7 {[%emt 0:05:37]} 43. Rb7 {[%emt 0:06:21]} Ke6 {[%emt 0:00:04]} 44. Bc1 {[%emt 0:00:42]} Rxf3+ {[%emt 0:02:48]} 45. Ke4 {[%emt 0:02:06]} Rc3 {[%emt 0:05:56]} 46. Bd2 {[%emt 0:00:55]} Rh3 {[%emt 0:00:21]} 47. Rc7 {[%emt 0:00:22]} Rxh5 {[%emt 0:01:22]} 48. Rxc6+ {[%emt 0:00:08]} Ke7 {[%emt 0:01:13]} 49. Ra6 {[%emt 0:06:43]} h6 {[%emt 0:06:20]} 50. Bb4+ {[%emt 0:02:40]} Kd8 {[%emt 0:04:41]} 51. g6 {[%emt 0:06:18]} Rg5 {[%emt 0:02:42]} 52. Bd2 {[%emt 0:01:37]} Rh5 {[%emt 0:05:06]} 53. Bf4 {[%emt 0:00:22]} Ke8 {[%emt 0:01:59]} 54. Re6+ {[%emt 0:01:15]} Kd8 {[%emt 0:00:01]} 55. Bd2 {[%emt 0:00:58]} Nf8 {[%emt 0:01:04]} 56. Ra6 {[%emt 0:00:33]} Nd7 {[%emt 0:00:13]} 57. Ra8+ {[%emt 0:00:44]} Kc7 {[%emt 0:01:04]} 58. Bf4+ {[%emt 0:01:34]} Kb7 {[%emt 0:00:10]} 59. Rh8 {[%emt 0:00:15]} Nf6+ {[%emt 0:00:25]} 60. Kd3 {[%emt 0:00:48]} Rh4 {[%emt 0:00:45]} 61. Be5 {[%emt 0:00:19]} Nh5 {[%emt 0:00:33]} 62. Rh7 {[%emt 0:01:53]} Rg4 {[%emt 0:00:35]} 63. Bxg7 {[%emt 0:00:11]} Rxg6 {[%emt 0:00:23]} 64. Bxh6+ {[%emt 0:00:13]} Kc8 {[%emt 0:00:34]} 65. Kc4 {[%emt 0:00:07]} Nf6 {[%emt 0:00:17]} 66. Rh8+ {[%emt 0:00:24]} Kb7 {[%emt 0:00:39]} 67. Bf4 {[%emt 0:00:13]} Rg7 {[%emt 0:00:39]} 68. Be5 {[%emt 0:00:21]} Rf7 {[%emt 0:00:04]} 69. d5 {[%emt 0:00:17]} Nd7 {[%emt 0:00:14]} 70. Bd6 {[%emt 0:02:13]} Rg7 {[%emt 0:01:06]} 71. Rd8 {[%emt 0:00:19]} Rh7 {[%emt 0:00:33]} 72. Kb5 {[%emt 0:00:22]} Rf7 {[%emt 0:00:04]} 73. Bc5 {[%emt 0:01:10]} Nxc5 {[%emt 0:00:22]} 74. Kxc5 {[%emt 0:00:06]} Kc7 {[%emt 0:00:05]} 75. Rh8 {[%emt 0:00:28]} Rg7 {[%emt 0:00:40]} 76. Rh6 {[%emt 0:00:05]} Rf7 {[%emt 0:00:56]} 77. Ra6 {[%emt 0:00:29]} Rf1 {[%emt 0:00:53]} 78. Ra7+ {[%emt 0:00:12]} Kb8 {[%emt 0:00:20]} 79. Re7 {[%emt 0:00:13]} Kc8 {[%emt 0:00:43]} 80. Kc6 {[%emt 0:00:10]} Rc1+ {[%emt 0:00:25]} 81. Kd6 {[%emt 0:00:06]} Rd1 {[%emt 0:00:22]} 82. Rh7 {[%emt 0:00:23]} Rd2 {[%emt 0:00:19]} 83. Rh8+ {[%emt 0:00:27]} Kb7 {[%emt 0:00:00]} 84. Rg8 {[%emt 0:02:40]} Rd1 {[%emt 0:00:38]} 85. Rg5 {[%emt 0:01:24]} Rh1 {[%emt 0:00:20]} 86. Re5 {[%emt 0:01:45]} Rh6+ {[%emt 0:00:56]} 87. Kd7 {[%emt 0:00:00]} Rg6 {[%emt 0:00:51]} 88. d6 {[%emt 0:00:00]} Kb6 {[%emt 0:00:35]} 89. Re1 {[%emt 0:00:00]} Rg7+ {[%emt 0:00:07]} 90. Re7 {[%emt 0:00:00]} Rg6 {[%emt 0:00:18]} 91. Re6 {[%emt 0:00:26]} Rg7+ {[%emt 0:00:39]} 92. Kd8 {[%emt 0:00:13]} Rg8+ {[%emt 0:00:24]} 93. Re8 {[%emt 0:00:02]} Rg7 {[%emt 0:00:45]} 94. d7 {[%emt 0:00:01]} Kb7 {[%emt 0:00:20]} 95. Re1 {[%emt 0:00:24]} Rg8+ {[%emt 0:00:24]} 96. Ke7 {[%emt 0:00:05]} Rg7+ {[%emt 0:00:03]} 97. Kd6 {[%emt 0:00:10]} Rg6+ {[%emt 0:00:34]} 98. Re6 {[%emt 0:00:04]} Rg8 {[%emt 0:00:10]} 99. Re8 {[%emt 0:00:03]} Rg6+ {[%emt 0:00:17]} 100. Ke5 {[%emt 0:00:05]} Rg5+ {[%emt 0:00:04]} 101. Kf4 {[%emt 0:00:04]} 1-0

[Event "Sardinia World Festival-A 2024"]
[Site "Orosei"]
[Date "2024.04.30"]
[Round "4.42"]
[White "Bellia, Fabrizio"]
[Black "Kairbekova, Amina"]
[Result "1-0"]
[ECO "E73"]
[WhiteElo "2384"]
[BlackElo "2204"]
[Annotator "TA"]
[PlyCount "73"]
[EventDate "2024.04.26"]
[EventType "swiss"]
[EventCountry "ITA"]
[SourceTitle "playchess.com"]
[Source "ChessBase"]
[SourceQuality "1"]
[TimeControl "40/5400+30:1800+30"]

{[%evp 12,73,33,25,29,30,36,21,18,31,18,18,37,0,87,75,71,39,101,11,41,39,60,58,38,17,21,21,29,-16,80,58,66,29,119,106,129,139,130,91,135,130,139,139,125,125,140,120,123,114,121,118,166,159,29979,29978,29988,29989,29989,29990,29994,29995,29996,29997]} 1. d4 {[%emt 0:02:24]} Nf6 {[%emt 0:00:07]} 2. c4 {[%emt 0:00:04]} g6 {[%emt 0:00:04]} 3. Nc3 {[%emt 0:00:03]} Bg7 {[%emt 0:00:06]} 4. e4 {[%emt 0:00:09]} d6 {[%emt 0:00:04]} 5. Be2 {[%emt 0:00:05]} O-O {[%emt 0:00:05]} 6. Be3 {[%emt 0:00:04]} Nc6 {[%emt 0:03:11]} 7. d5 {[%emt 0:00:55]} Ne5 {[%emt 0:00:04]} 8. f4 {[%emt 0:00:23]} Neg4 {[%emt 0:00:05]} 9. Bd2 {[%emt 0:00:12]} Nh6 $1 {[%emt 0:01:41] The position is equal.} 10. h3 {[%emt 0:00:52]} e6 {[%emt 0:02:54]} 11. dxe6 {[%emt 0:01:01]} fxe6 {[%emt 0:00:37]} 12. g4 {[%emt 0:00:20]} Nf7 {[%emt 0:04:01]} (12... Nd7 $1 $11) 13. Qc2 $1 $16 {[%emt 0:06:33]} b5 {[%emt 0:03:59]} 14. cxb5 {[%emt 0:02:20]} d5 {[%emt 0:01:10]} ({Black should play} 14... e5 $14) 15. Nf3 {[%emt 0:20:28]} (15. e5 $16) 15... Nxe4 {[%emt 0:03:51]} 16. Nxe4 {[%emt 0:00:11]} dxe4 {[%emt 0:00:04]} 17. Qxe4 {[%emt 0:00:13]} Rb8 {[%emt 0:00:06][%cal Of7d6]} 18. O-O {[%emt 0:09:11] With the idea Qe3.} Bb7 $1 {[%emt 0:13:09]} 19. Qc2 {[%emt 0:02:51]} Nd6 {[%emt 0:04:20][%cal Od6b5]} 20. a4 {[%emt 0:52:11]} Ne4 {[%emt 0:03:31]} (20... c6 $11) 21. Be3 {[%emt 0:00:00][%cal Oe2d3]} Ng3 {[%emt 0:05:08]} 22. Rad1 {[%emt 0:00:00]} Qf6 {[%emt 0:00:37]} (22... Be4 $11 {remains equal.} 23. Rxd8 Bxc2 24. Rxf8+ (24. Rxb8 Nxe2+ 25. Kf2 Rxb8 $11) 24... Rxf8) 23. Rf2 $36 {[%emt 0:00:00][%mdl 2048] Hoping for Rd7. White is on the roll.} Nxe2+ {[%emt 0:08:38]} 24. Qxe2 {[%emt 0:00:00]} Bd5 {[%emt 0:00:08]} 25. Rc1 {[%emt 0:00:00]} (25. Bxa7 Ra8 26. Bc5 Rxa4 $14) 25... Qd8 {[%emt 0:00:57]} 26. Ne5 {[%emt 0:00:00]} (26. Bxa7 Ra8 27. Bd4 Bxd4 28. Nxd4 Qd6 $16) 26... Bxe5 {[%emt 0:17:08]} 27. fxe5 {[%emt 0:00:00]} Rxf2 {[%emt 0:00:03]} 28. Qxf2 {[%emt 0:00:00][%cal Oe3h6] Black must now prevent Bh6!} (28. Kxf2 $2 Qh4+ 29. Kf1 Rf8+ (29... Qxh3+ 30. Ke1 $17) 30. Bf2 Qxh3+ 31. Ke1 Rf4 $19) 28... Bb7 {[%emt 0:00:07] Black is weak on the dark squares} 29. Kh2 {[%emt 0:00:00][%cal Oe3h6,Bg1h2,Bh2g3,Bg3h4][%mdl 32] Threatens to win with Bh6!} (29. Bxa7 Qd5 30. Qh2 (30. Bxb8 $2 Qh1#) 30... Rf8 $15) 29... Qd5 {[%emt 0:00:20]} 30. Bh6 {[%emt 0:00:00] Wards off Rf8. Strongly threatening Rf1. Active counter play!} ({Much worse is} 30. Rxc7 $6 Rf8 $11) 30... Qxe5+ {[%emt 0:01:30] [#]} 31. Qf4 $1 {[%emt 0:00:00]} Qxb2+ {[%emt 0:17:50] [#]} (31... Qxf4+ $16 32. Bxf4 Rc8 33. Rxc7 (33. Bxc7 Kf7 $18) 33... Rxc7 34. Bxc7 Kf7) 32. Kg3 $1 $18 {[%emt 0:00:00]} Rc8 {[%emt 0:00:56] Loses the game.} (32... Qa3+ $16 33. Kh4 Qe7+ 34. Bg5 e5 35. Qc4+ (35. Bxe7 exf4 36. Rxc7 a6 $18) 35... Qf7 36. Qxf7+ (36. Qxc7 $2 Qf2#) 36... Kxf7 37. Rxc7+ Ke6) 33. Kh4 {[%emt 0:00:00] White mates.} g5+ {[%emt 0:07:52]} 34. Qxg5+ {[%emt 0:00:00]} Kh8 {[%emt 0:00:25]} 35. Rf1 {[%emt 0:00:00]} Qd4 {[%emt 0:02:04]} 36. Qe7 {[%emt 0:08:00]} Rg8 {[%emt 0:00:48]} 37. Rf8 {[%emt 0:00:00] Weighted Error Value: White=0.11 (very precise) /Black=0.40.  Loses game:     	---       	Black=1      Mistake:       	White=1     	Black=5      Inaccurate:     	White=3     	Black=2      OK:         	White=5     	Black=5      Best:        	White=3     	Black=3      Strong:       	White=3     	Black=2} 1-0